Cogmind - Beta 11 X2 @@@ ROGUE MODE // 2021.02.16 @ 13:50:02 Player: Boris Result: Destroyed by EX-DEC with AWS/EX-DEC Performance ------------- Evolutions (1) 500 Regions Visited (5) 1000 Robots Destroyed (70) 350 Value Destroyed (1637) 1637 Prototype IDs (42) 840 Alien Tech Used (0) 0 Bonus (479) 479 TOTAL SCORE: 4806 Bonus ------- Follower Combat Kills 192 Aligned with FarCom 300 Friendly Fire -13 Cogmind --------- Core Integrity 0/400 Matter 177/300 Energy 310/310 System Corruption 4% Temperature Cool (63) Movement Treading (460) Ox3 Location -9/Exiles Parts ------- > --- POWER (1) -------- Reinforced Fission Core > --- PROPULSION (2) --- Light Treads > --- UTILITY (3) ------ High-capacity Storage Unit Makeshift Salvage Targeting Computer Improved Targeting Computer > --- WEAPON (3) ------- 8R-AWN's Boregun > --- INVENTORY (20) --- Heavy Ion Engine Advanced Myomer Leg Advanced Myomer Leg Advanced Myomer Leg Experimental Heat Sink High-capacity Matter Pod (200) Experimental Targeting Computer Advanced Weapon Cycler Hacking Suite AS-neutralizer No. 17b Autogun Autogun Autogun 8R-AWN's Boregun Grenade Launcher Rocket Launcher Rocket Launcher Plasma Cutter Katana Peak State ------------ > --- POWER ------------ Reinforced Fission Core > --- PROPULSION ------- Light Treads Light Treads > --- UTILITY ---------- High-capacity Storage Unit Makeshift Salvage Targeting Computer Improved Targeting Computer > --- WEAPON ----------- Improved Assault Rifle Improved Assault Rifle 8R-AWN's Boregun > --- INVENTORY -------- Heavy Ion Engine Advanced Myomer Leg Advanced Myomer Leg Advanced Myomer Leg Experimental Heat Sink High-capacity Matter Pod Experimental Targeting Computer Advanced Weapon Cycler Hacking Suite AS-neutralizer No. 17b Autogun Autogun Autogun 8R-AWN's Boregun Grenade Launcher Rocket Launcher Rocket Launcher Plasma Cutter Katana [Rating: 39] Favorites ----------- Power Heavy Ion Engine Engine Heavy Ion Engine Power Core Reinforced Fission Core Propulsion Light Treads Treads Light Treads Wheel Wheel Utility High-capacity Storage Unit Device Heat Sink Storage High-capacity Storage Unit Processor Improved Targeting Computer Hackware Hacking Suite Protection Light Armor Plating Weapon Improved Assault Rifle Energy Gun EM Pulse Gun Energy Cannon Advanced Beam Cannon Ballistic Gun Improved Assault Rifle Ballistic Cannon Light Cannon Launcher Grenade Launcher Special Weapon Plasma Cutter Slashing Weapon Mining Claw Special Melee Weapon Datajack Build | -11 -10 -10 -9 -9 -9 ------- Run | Scr Mat Min Mat Min Exi Slots Evolved 2 | . . . 2 . . Power . | . . . . . . Propulsion . | . . . . . . Utility 1 | . . . 1 . . Weapon 1 | . . . 1 . . Parts Attached 87 | 6 19 12 24 3 23 Power 7 | 1 1 1 3 . 1 Engine 6 | 1 1 1 3 . . Core 1 | . . . . . 1 Reactor . | . . . . . . Propulsion 16 | 2 2 3 5 . 4 Treads 10 | 1 1 1 3 . 4 Leg . | . . . . . . Wheel 6 | 1 1 2 2 . . Hover . | . . . . . . Flight . | . . . . . . Utility 13 | 1 2 2 4 1 3 Device 1 | . . . 1 . . Storage 2 | 1 1 . . . . Processor 3 | . 1 . 1 . 1 Hackware 1 | . . . 1 . . Protection 6 | . . 2 1 1 2 Artifact . | . . . . . . Weapon 51 | 2 14 6 12 2 15 Energy Gun 15 | . 7 5 3 . . Energy Cannon 1 | . . . 1 . . Ballistic Gun 27 | 2 6 . 6 1 12 Ballistic Cannon 1 | . 1 . . . . Launcher 4 | . . 1 1 1 1 Special Weapon 1 | . . . . . 1 Impact Weapon . | . . . . . . Slashing Weapon 1 | . . . 1 . . Piercing Weapon . | . . . . . . Special Melee Weapon 1 | . . . . . 1 Unidentified Prototypes 1 | . . . 1 . . Parts Lost 23 | . 4 3 4 . 12 Power 1 | . . . . . 1 Propulsion 7 | . 1 1 1 . 4 Utility 4 | . . . 1 . 3 Weapon 11 | . 3 2 2 . 4 Highest Loss Streak 7 | . 2 3 2 . 7 Average Slot Usage (%) 94 | . 85 99 97 100 93 Engine 10 | . 14 14 10 11 8 Treads 15 | . 13 8 3 22 21 Wheel 8 | . 14 19 17 . . Storage 11 | . 14 14 11 11 11 Processor 7 | . 1 3 7 11 11 Hackware 1 | . . . 5 . . Protection 6 | . . 10 4 10 8 Energy Gun 6 | . 8 21 12 . . Ballistic Gun 20 | . 19 2 14 32 26 Special Melee Weapon 1 | . . . . . 3 Naked Turns . | . . . . . . Heaviest Build 70 | 10 48 53 59 60 70 Greatest Support 40 | 10 16 40 40 40 40 Greatest Overweight (x) 4 | . 4 3 4 1 2 Average Overweight (x) 1 | . 1 1 1 1 1 Largest Inventory Capacity 20 | 8 20 20 20 20 20 Average Capacity 19 | 7 18 20 20 20 20 Most Carried 20 | 4 20 20 20 20 20 Average Carried 18 | 2 17 19 19 19 17 Final Capacity 20 | 8 20 20 20 20 20 Final Carried 20 | 4 20 20 20 20 19 Class Distribution -------------------- 72% | Mutant 25% | Gunner Dominant Class ---------------- Mutant | -10/Materials Mutant | -10/Mines Gunner | -9/Materials Gunner | -9/Mines Mutant | -9/Exiles Resources | -11 -10 -10 -9 -9 -9 ----------- Run | Scr Mat Min Mat Min Exi Matter Collected 2462 | 222 618 188 649 69 716 Remotely . | . . . . . . Salvage Created 2580 | . 615 235 1395 86 249 Parts 154 | . 39 18 73 8 16 Haulers Intercepted 6 | . 2 . 4 . . Recyclers Shooed 3 | . . 1 2 . . Parts Field Recycled . | . . . . . . Retrieved Matter . | . . . . . . Parts Self-Destructed . | . . . . . . Prevented . | . . . . . . Kills | -11 -10 -10 -9 -9 -9 ------- Run | Scr Mat Min Mat Min Exi Combat Hostiles Destroyed 52 | . 14 8 22 3 5 Guns 34 | . 6 4 21 2 1 Cannons 3 | . . 3 . . . AOE 15 | . 8 1 1 1 4 Classes Destroyed 12 | . 7 1 1 . 3 Worker 5 | . 3 . 2 . . Hauler 6 | . 2 . 4 . . Recycler 3 | . 1 . 2 . . Operator 2 | . 1 . 1 . . Turret 1 | . . . . . 1 Watcher 3 | . 3 . . . . Swarmer 15 | . 9 4 2 . . Grunt 23 | . 5 2 13 3 . Duelist 1 | . . . 1 . . Sentry 8 | . . 2 6 . . Zionite 3 | . . . . . 3 Assembled 4 | . . . . . 4 Best Kill Streak 10 | . 10 3 6 3 4 Combat Bots Only 7 | . 7 3 3 3 4 Max Kills in Single Turn 6 | . 6 1 2 1 2 Gunslinging . | . . . . . . Exploded 3 | . 3 1 1 1 2 Melee . | . . . . . . Uniques/NPCs Destroyed 1 | . . . . . 1 8R-AWN (-9/Exiles) Combat | -11 -10 -10 -9 -9 -9 -------- Run | Scr Mat Min Mat Min Exi Damage Taken 3780 | . 474 384 608 166 2148 Core 551 | . 67 84 44 37 319 Absorbed by Shields . | . . . . . . Core Remaining (%) 69 | 100 . 39 . . . Volleys Fired 200 | . 60 20 68 6 46 Largest 3 | . 2 2 3 3 3 Hottest 125 | . 80 80 125 69 83 Shots Fired 450 | . 118 38 160 12 122 Gun 423 | . 118 28 158 9 110 Cannon 9 | . . 9 . . . Launcher 10 | . . 1 2 3 4 Special 8 | . . . . . 8 Kinetic 298 | . 62 18 99 9 110 Thermal 8 | . . . . . 8 Explosive 10 | . . 1 2 3 4 Electromagnetic 134 | . 56 19 59 . . Robot Hit Streak 16 | . 9 13 16 9 15 Robot Miss Streak 5 | . 5 2 4 1 3 Penetration Max 1 | . . . . . 1 Secondary Targets 2 | . 1 . 1 . . Max Gunslinging Chain 1 | . 1 . 1 . . Shots Hit Robots 321 | . 67 26 112 9 107 Core Hits 140 | . 35 12 58 7 28 Critical Hits 5 | . . . . . 5 Critical Kills 1 | . . . . . 1 Critical Parts Destroyed 3 | . . . . . 3 Melee Attacks 20 | . . . 8 . 12 Impact . | . . . . . . Slashing 8 | . . . 8 . . Piercing . | . . . . . . Sneak Attacks 16 | . . . 4 . 12 Combat Hostiles . | . . . . . . Follow-up Attacks . | . . . . . . Damage Inflicted 5640 | . 1514 393 2023 217 1493 Guns 3587 | . 625 259 1393 84 1226 Cannons 105 | . . 105 . . . Explosions 1532 | . 889 29 223 131 260 Melee 407 | . . . 407 . . Ramming 2 | . . . . 2 . Kinetic 2486 | . 185 213 778 84 1226 Thermal 1012 | . 889 . 116 . 7 Explosive 527 | . . 29 107 131 260 Electromagnetic 1206 | . 440 151 615 . . Impact . | . . . . . . Slashing 407 | . . . 407 . . Piercing . | . . . . . . Highest Corruption 4 | . 1 1 . . 4 Average Corruption 1 | . 1 1 . . 2 Corruption Purged . | . . . . . . Effects 5 | . 3 2 . . . Message Errors 3 | . 2 1 . . . Data Loss (minor) 2 | . 1 1 . . . Overload Shots . | . . . . . . Overflow Damage 226 | . 109 . 117 . . Projectiles . | . . . . . . Explosions 109 | . 109 . . . . Melee 117 | . . . 117 . . Knockbacks 2 | . . 2 . . . Impact . | . . . . . . Kinetic 2 | . . 2 . . . Secondary . | . . . . . . Self-Inflicted Damage 223 | . 124 . . 50 49 Shots 7 | . 4 . . 2 1 Rammed 2 | . . 1 . 1 . Targets Rammed 2 | . . 1 . 1 . Kicked . | . . . . . . Crushed . | . . . . . . Highest Temperature 459 | . 144 116 459 48 152 Average Temperature 48 | . 53 31 48 21 58 Received Heat Transfer 492 | . 96 117 213 66 . Effects 1 | . . . 1 . . Damage (minor) 1 | . . . 1 . . Siege Activations . | . . . . . . Robots Corrupted 1 | . 1 . . . . Combat Hostiles . | . . . . . . Parts Fried 7 | . 5 . 2 . . Impact Corruptions . | . . . . . . Robots Melted . | . . . . . . Combat Hostiles . | . . . . . . Parts Melted 1 | . 1 . . . . Heat Transferred 1063 | . 850 . 150 . 63 Parts Sabotaged . | . . . . . . Parts Stolen . | . . . . . . Parts Stripped . | . . . . . . Power Chain Reactions 6 | . 4 . 2 . . Missiles Intercepted . | . . . . . . Alert | -11 -10 -10 -9 -9 -9 ------- Run | Scr Mat Min Mat Min Exi Peak Influence 347 | . 347 172 221 154 . Initial 24 | . . 12 . 24 . Average 85 | . 98 84 93 42 . Maximum Alert Level 1 | . 1 . 1 . . Low Security (%) 93 | 100 84 100 94 100 . Level 1 6 | . 15 . 5 . . Level 2 . | . . . . . . Level 3 . | . . . . . . Level 4 . | . . . . . . Level 5 . | . . . . . . High Security . | . . . . . . Max Security . | . . . . . . Squads Dispatched 4 | . 3 . 1 . . Investigation 2 | . 2 . . . . Extermination . | . . . . . . Reinforcement 2 | . 1 . 1 . . Assault . | . . . . . . Garrison . | . . . . . . Intercept . | . . . . . . Construction Impeded . | . . . . . . Haulers Reinforced . | . . . . . . Stealth | -11 -10 -10 -9 -9 -9 --------- Run | Scr Mat Min Mat Min Exi Distress Signals 3 | . 1 . 2 . . Communications Jammed . | . . . . . . Distress Signals . | . . . . . . Times Spotted 97 | . 29 11 38 3 16 Peak Tracking Total 9 | . 6 3 6 3 9 Tactical Retreats 5 | . . 1 2 . 2 Traps | -11 -10 -10 -9 -9 -9 ------- Run | Scr Mat Min Mat Min Exi Traps Triggered 4 | . 4 . . . . Indirectly . | . . . . . . Trap Hack Attempts . | . . . . . . Triggered . | . . . . . . Disarmed . | . . . . . . Reprogrammed . | . . . . . . Reused . | . . . . . . Traps Extracted . | . . . . . . Installed . | . . . . . . Triggered . | . . . . . . Exploded 3 | . . . . . 3 Machines | -11 -10 -10 -9 -9 -9 ---------- Run | Scr Mat Min Mat Min Exi Machines Disabled 19 | . 4 . 2 4 9 Max in Single Turn 4 | . 2 . 1 4 2 Machines Sabotaged . | . . . . . . Garrisons Compromised . | . . . . . . Overloaded Fab Kills . | . . . . . . Fab Network Shutdowns . | . . . . . . Hacking | -11 -10 -10 -9 -9 -9 --------- Run | Scr Mat Min Mat Min Exi Machines Accessed 18 | . 7 . 9 . 2 Terminals 14 | . 6 . 8 . . Fabricators . | . . . . . . Repair Stations 1 | . . . 1 . . Recycling Units 1 | . 1 . . . . Scanalyzers . | . . . . . . Garrison Access . | . . . . . . Total Hacks 65 | . 33 . 30 . 2 Successful 40 | . 15 . 23 . 2 Failed 24 | . 17 . 7 . . Catastrophic 2 | . 1 . 1 . . Database Lockouts 1 | . 1 . . . . Manual 32 | . 13 . 18 . 1 Terminals 60 | . 32 . 28 . . Fabricators . | . . . . . . Repair Stations 2 | . . . 2 . . Recycling Units 1 | . 1 . . . . Scanalyzers . | . . . . . . Garrison Access . | . . . . . . Terminal Hacks 24 | . 10 . 12 . 2 Record 1 | . . . . . 1 Robot Analysis 2 | . 2 . . . . Prototype ID Bank 3 | . 1 . 2 . . Branch Access Points 1 | . . . 1 . . Terminal Index 1 | . 1 . . . . Alert Level 1 | . . . 1 . . Unreport Threat 4 | . 1 . 3 . . Locate Traps 2 | . . . 2 . . Hauler Manifests 2 | . 1 . 1 . . Registered Components 2 | . 1 . 1 . . Zone Layout 4 | . 3 . 1 . . EX-Prototype ID Bank 1 | . . . . . 1 Fabricator Hacks . | . . . . . . Repair Station Hacks 2 | . . . 2 . . Scan Component 1 | . . . 1 . . Repair 1 | . . . 1 . . Recycling Unit Hacks 1 | . 1 . . . . Retrieve Components 1 | . 1 . . . . Scanalyzer . | . . . . . . Garrison Access Hacks . | . . . . . . Unauthorized Hacks 13 | . 4 . 9 . . Terminals 13 | . 4 . 9 . . Track 4 | . 1 . 3 . . Assimilate 1 | . . . 1 . . Botnet 6 | . 2 . 4 . . Operators 2 | . 1 . 1 . . Fabricators . | . . . . . . Repair Stations . | . . . . . . Recycling Units . | . . . . . . Scanalyzers . | . . . . . . Garrison Access . | . . . . . . Data Cores Recovered . | . . . . . . Used . | . . . . . . Hacking Detections 14 | . 6 . 8 . . Full Trace Events . | . . . . . . Feedback Events . | . . . . . . Feedback Blocked . | . . . . . . Robot Schematics Acquired . | . . . . . . Robots Built . | . . . . . . Matter . | . . . . . . Time . | . . . . . . Total Robot Build Rating . | . . . . . . Part Schematics Acquired . | . . . . . . Parts Built . | . . . . . . Matter . | . . . . . . Time . | . . . . . . Total Part Build Rating . | . . . . . . Parts Repaired 1 | . . . 1 . . Time 32 | . . . 32 . . Parts Recycled . | . . . . . . Recycled Matter . | . . . . . . Retrieved Matter . | . . . . . . Retrieved Components 10 | . 10 . . . . Parts Scanalyzed . | . . . . . . Part Schematics Acquired . | . . . . . . Parts Damaged . | . . . . . . Bothacking | -11 -10 -10 -9 -9 -9 ------------ Run | Scr Mat Min Mat Min Exi Used RIF Installer . | . . . . . . Robots Hacked 10 | . . . . . 10 Non-combat 3 | . . . . . 3 Combat 7 | . . . . . 7 Robot Hacks Applied 11 | . . . . . 11 parse_system 11 | . . . . . 11 Relay Couplers Released . | . . . . . . Robots Rewired . | . . . . . . Allies Hacked . | . . . . . . Hacks Repelled . | . . . . . . Allies | -11 -10 -10 -9 -9 -9 -------- Run | Scr Mat Min Mat Min Exi Total Allies 4 | . . 3 1 . . Largest Group 3 | . . 3 3 . . Highest-Rated Group 40 | . . 40 40 . . Highest-Rated Ally 16 | . . 16 16 . . Total Orders . | . . . . . . Ally Attacks 48 | . . 22 26 . . Total Damage 433 | . . 156 277 . . Kills 10 | . . 4 6 . . Allies Corrupted . | . . . . . . Allies Melted . | . . . . . . Intel | -11 -10 -10 -9 -9 -9 ------- Run | Scr Mat Min Mat Min Exi Robot Analysis Total 2 | . 2 . . . . Derelict Logs Recovered 2 | . . 1 . 1 . Drone Launches . | . . . . . . Drone Recoveries . | . . . . . . Exploration | -11 -10 -10 -9 -9 -9 ------------- Run | Scr Mat Min Mat Min Exi Turns Passed 7172 | 51 1161 921 1352 489 3198 Spaces Moved 3453 | 47 704 616 770 174 1142 Core 1 | 1 . . . . . Treads 1441 | . . 38 87 174 1142 Legs . | . . . . . . Wheels 2011 | 46 704 578 683 . . Hover . | . . . . . . Flight . | . . . . . . Fastest Speed 50 | 50 80 110 110 260 260 Average Speed 176 | 79 122 124 131 260 260 Slowest Speed 360 | 80 140 260 360 260 360 Overloaded Moves . | . . . . . . Propulsion Burnouts . | . . . . . . Robots Hopped . | . . . . . . Cave-ins Triggered . | . . . . . . Exploration Rate (%) 63 | 4 95 85 63 43 90 Regions Visited 5 Branch Regions 3 Pre-discovered Areas 1 | . . . . . 1 Known Exits Taken 3 | . 1 1 1 . . Unknown Exits Taken 2 | 1 . . . 1 . Scrap Searched 3 | . . 3 . . . Spaces Dug . | . . . . . . Terrain Destroyed 91 | . 27 6 18 17 23 Melee . | . . . . . . Projectile . | . . . . . . AOE 91 | . 27 6 18 17 23 Terrain Rammed . | . . . . . . Walls Destroyed . | . . . . . . Machines Disabled . | . . . . . . Actions | -11 -10 -10 -9 -9 -9 --------- Run | Scr Mat Min Mat Min Exi Total 4155 | 57 903 731 998 200 1266 Wait 246 | 1 82 61 79 15 8 Move 3448 | 46 703 615 769 173 1142 Hop . | . . . . . . Pick Up 85 | 4 28 12 20 1 20 Fast Attach 17 | 6 1 . 9 . 1 Attach 30 | . 6 7 4 1 12 Detach 4 | . . 1 . 1 2 Swap 40 | . 12 5 11 2 10 Drop 63 | . 11 9 30 . 13 Fire 200 | . 60 20 68 6 46 Melee 20 | . . . 8 . 12 Ram . | . . . . . . Kick . | . . . . . . Crush 2 | . . 1 . 1 . Escape Stasis . | . . . . . . Rewire . | . . . . . . Trap . | . . . . . . Miscellaneous . | . . . . . . Route ------- -11/Scrapyard -10/Materials (discovered 5 exits: *Mat x3 / *Min x2) -10/Mines (discovered 2 exits: *Mat x2) -9/Materials (discovered 3 exits: [*Mat] / *Min / *Sto) -9/Mines (discovered 2 exits: [*Mat] / *Exi) -9/Exiles (discovered 1 exit: [*Min]) History --------- Turn | Location | Event 7 | -11/Scrapyard | Discovered new exit (range 15) 52 | -11/Scrapyard | Entered Materials 129 | -10/Materials | Discovered new exit (range 16) 305 | -10/Materials | Build established: Mutant 308 | -10/Materials | Discovered new exit (range 16) 325 | -10/Materials | Destroyed 7 combat bots 349 | -10/Materials | Central database locked down 419 | -10/Materials | Discovered new exit (range 16) 554 | -10/Materials | Discovered new exit (range 15) 1116 | -10/Materials | Identified exit to Materials 1200 | -10/Materials | Discovered new exit (range 9) 1212 | -10/Materials | Identified exit to Mines 1213 | -10/Materials | Entered Mines 1294 | -10/Mines | Discovered exit to Materials (range 8) 1313 | -10/Mines | Discovered exit to Materials (range 10) 1397 | -10/Mines | A weapon hastily lodged in a ceiling crevice suddenly fell to the ground 1483 | -10/Mines | Core integrity fell below 50% 1510 | -10/Mines | Lost 3 parts (1n2w) 1698 | -10/Mines | Assisted by bots powering up and referring to "LRC-V3" 1871 | -10/Mines | Learned Materials terminal intel 2134 | -10/Mines | Entered Materials 2134 | -9/Materials | Accompanied by 3 allies 2134 | -9/Materials | Evolved 2 slots: Utility x1, Weapon x1 2135 | -9/Materials | Loaded intel: 12 terminal locations 2410 | -9/Materials | Discovered new exit (range 6) 2491 | -9/Materials | Discovered new exit (range 15) 2845 | -9/Materials | Discovered new exit (range 10) 2973 | -9/Materials | Identified exit to Mines 2973 | -9/Materials | Identified exit to Storage 3101 | -9/Materials | Repaired Imp. Ion Engine 3178 | -9/Materials | Build established: Gunner 3486 | -9/Materials | Entered Mines 3547 | -9/Mines | Learned location of 1 exit from Lower Caves 3741 | -9/Mines | Discovered new exit (range 9) 3954 | -9/Mines | Deemed a non-threat by the Exiles lab entrance 3954 | -9/Mines | Discovered new exit (range 5) 3955 | -9/Mines | Assembled infested the area 3960 | -9/Mines | Assisted by a Guerilla fighting off Assembled 3975 | -9/Mines | Entered Exiles 4039 | -9/Exiles | Met 8R-AWN 4088 | -9/Exiles | Met EX-HEX 4163 | -9/Exiles | Met EX-BIN 4199 | -9/Exiles | Aligned with FarCom system 4201 | -9/Exiles | Given EX-Vault access code 4266 | -9/Exiles | Opened EX-Vault 4326 | -9/Exiles | Build established: Mutant 4326 | -9/Exiles | Warned to stay clear of 0b10 Research branches 4402 | -9/Exiles | Met EX-DEC 4519 | -9/Exiles | Visited The Gauntlet 5098 | -9/Exiles | Discovered new exit (range 12) 5385 | -9/Exiles | Found Gui. Plasma Cannon 5388 | -9/Exiles | Found Superbattery 5397 | -9/Exiles | Found Field Lobotomy Kit 6183 | -9/Exiles | Attacked by the Exiles 6345 | -9/Exiles | Core integrity fell below 50% 6373 | -9/Exiles | Destroyed 8R-AWN 6388 | -9/Exiles | Lost 7 parts (1p2n2u2w) 6517 | -9/Exiles | Found 8R-AWN's Boregun 6520 | -9/Exiles | Found 8R-AWN's Boregun 6544 | -9/Exiles | Build established: Gunner 6733 | -9/Exiles | Learned location of Zion (-6) 6805 | -9/Exiles | Found Exp. Targeting Computer 6959 | -9/Exiles | Found AS-neutralizer No. 17b 7162 | -9/Exiles | Core integrity fell below 20% 7173 | -9/Exiles | Destroyed by EX-DEC with AWS/EX-DEC Last Messages --------------- 06951_ Acquired 20 matter. 06959_ Acquired AS-neutralizer No. 17b. 07083_ GM-J5T destroyed. 07098_ L3-D99(z) destroyed. 07098_ Machine disabled. 07102_ Dropped Lgt. Treads. 07121_ Acquired Mak. Salvage Targeting Computer. 07122_ Acquired 22 matter. 07134_ Machine disabled. 07158_ Lgt. Treads destroyed. 07163_ HV Slug penetrates EX-DEC. 07166_ Imp. Assault Rifle destroyed. 07166_ HV Slug penetrates EX-DEC. 07166_ EX-DEC suffers critical hit. 07166_ Destroyed Hvy. Deuterium Engine. 07169_ HV Slug penetrates ZX-C33. 07171_ Imp. Assault Rifle destroyed. 07172_ HV Slug penetrates Machine. 07172_ Machine disabled. 07172_ HV Slug penetrates Machine. Map ----- +----------------------------------------------------+ | ???????#"""" | | ???????## " | | ????????#" " "" """ | | ????????#"""" ""## ##""" " " ""#" | | ????????#"" ""#### ######""" """##" | | ????????#" """"##??# #????###""""#### | | ????????#""" """#??## ####???######??? | | ????????## ""##??#! "!#???????????? | | ?????????#"" """##???#" !#???????????? | | ?????????##""" ##????#" "#???????????? | | ??????????##"" ##?????#!!""!"#???????????? | | ???????????### #??????########???????????? | | ?????????????##### ##?????????????????????????? | | ?????????????????## #??????????????????????????? | | ??????????????????# #??????????????????????????? | | ??????????????????# #??????????????????????????? | | ??????????????????# =#??????????????????????????? | | ??????????????????# #??????????????????????????? | | """"???#"""""?????# #??????????????????????????? | | """"????""""""????# #??????????????????????????? | | "" "#???" """"???# #??????????????????????????? | | """????"" """???# #??????????????????????????? | | ""????"" ""???# #??????????????????????????? | | ""########"""###### ########???????????????????? | | """""""" """" * " """"#?""""??????????????? | | """"""" = @ "#"" ""#?????????????? | | z c %c " ""#?????????????? | | z " " "#?????????????? | | " """#?????????????? | | "" #"" ""??????????????? | | " """"" " "" " """""#?""""??????????????? | | ""###""###"""########"""######??#????????????????? | | ""#""#"" ""????"" ""???????????????????????? | | ""#""#""" ""#??#"" """???????????????????????? | | """""""#" " "#??#"""""""#??????????????????????? | | """"????"""""""#??#"" """"???????????????????????? | | """"????"""""""#???""""""????????????????????????? | | ??????????####??????####?????????????????????????? | | ?????????????????????????????????????????????????? | | ?????????????????????????????????????????????????? | | ?????????????????????????????????????????????????? | | ?????????????????????????????????????????????????? | | | | | | | | | | | | | | | | | +----------------------------------------------------+ Best States ------------- Heat Dissipation 38 Energy Generation 19 Energy Capacity 310 Matter Stores 300 Matter Capacity 300 Sight Range 16 Terrain Scan Density 10 Armor Coverage 150 Evasion (%) 44 Targeting Accuracy 6 Recoil Reduction 2 Salvage Targeting 4 Offensive Hacking 10 Item Schematics ----------------- None Robot Schematics ------------------ None Fabricated ------------ Nothing Alien Tech Used ----------------- None Achievements -------------- None Challenges ------------ None Game ------ Seed SurgeWarpInterpreter Manual? 0 Play Time 00:42:16 Cumulative 201.6 hours Start 2021.02.16 @ 12:48:55 End 2021.02.16 @ 13:50:02 Sessions 3 Manual Loads 0 Difficulty Rogue Special Mode None Game No. 71 Rogue 56 Adventurer 15 Explorer 0 Win Type - Total 8 Types 3/0/2/1/2/0/0/0/0 Lore% 83 Gallery% 84 Achievement% 69 Wizard Run 0 Options --------- ASCII 0 Keyboard 0 Movement Numpad Keybinds 0 Fullscreen 1 Font 18/SmallcapsGlow Map View 76x50 Tactical HUD 1 Map Filters NONE Filters NONE Steam 1 RUN: 49d65a70-84bb-48fd-8880-3e3c60eaee49